fUSD/lending_fUSD_20240204
["ID","MTS","AMOUNT","RATE_DAILY","PERIOD"]
[313246535,1707007859617,-450.0,0.00046365,30]
[313246536,1707007859626,-150.0,0.000464,30]
[313246537,1707007859635,-150.0,0.000464,30]
[313246538,1707007859645,-150.0,0.00046431,2]
[313246539,1707007859654,-150.0,0.00046484,30]
[313246540,1707007859663,-150.0,0.00046484,30]
[313246541,1707007859672,-150.0,0.00046484,30]
[313246542,1707007859681,-800.0,0.000465,115]
[313246543,1707007859690,-500.0,0.000465,10]
[313246544,1707007859699,-514.687,0.000465,10]
[313246545,1707007859795,-1354.0,0.000465,2]
[313246546,1707007859805,-150.0,0.000465,17]
[313246547,1707007859814,-3826.0219175,0.00046558,5]
[313246548,1707007859823,-150.0,0.00046568,30]
[313246549,1707007859833,-500.0,0.00046575,60]
[313246550,1707007859842,-500.0,0.00046575,60]
[313246551,1707007859851,-500.0,0.00046575,60]
[313246552,1707007859860,-350.94557933,0.00046575,31]
[313246553,1707007859871,-367.07550151,0.00046575,31]
[313246554,1707007859881,-544.52764172,0.00046575,31]
[313246555,1707007859890,-451.89830065,0.00046575,31]
[313246556,1707007859899,-500.0,0.00046575,2]
[313246557,1707007859909,-500.0,0.00046575,30]
[313246558,1707007859918,-500.0,0.00046575,31]
[313246559,1707007859927,-500.0,0.00046575,31]
[313246560,1707007859936,-212.61312492,0.00046575,31]
[313246561,1707007859945,-536.94680224,0.00046575,31]
[313246562,1707007859954,-500.0,0.00046575,31]
[313246563,1707007859964,-500.0,0.00046575,31]
[313246564,1707007859973,-7886.32,0.00046575,31]
[313246565,1707007859982,-1099.01,0.00046575,7]
[313246566,1707007859991,-543.70529222,0.00046575,2]
[313246567,1707007860000,-500.0,0.00046575,2]
[313246568,1707007860009,-500.0,0.00046575,31]
[313246569,1707007860019,-500.0,0.00046575,7]
[313246570,1707007860028,-500.0,0.00046575,31]
[313246571,1707007860037,-518.6,0.00046575,31]
[313246572,1707007860048,-511.97669073,0.00046575,31]
[313246573,1707007860057,-500.0,0.00046575,31]
[313246574,1707007860066,-500.0,0.00046575,31]
[313246575,1707007860076,-500.0,0.00046575,31]
[313246576,1707007860085,-500.0,0.00046575,31]
[313246577,1707007860094,-337.16174964,0.00046575,31]
[313246578,1707007860103,-500.0,0.00046575,31]
[313246579,1707007860113,-500.0,0.00046575,31]
[313246580,1707007860122,-500.0,0.00046575,31]
[313246581,1707007860131,-500.0,0.00046575,31]
[313246582,1707007860140,-500.0,0.00046575,31]
[313246583,1707007860150,-500.0,0.00046575,31]
[313246584,1707007860159,-624.39548512,0.00046575,31]
[313246585,1707007860168,-150.0,0.00046575,31]
[313246586,1707007860177,-500.0,0.00046575,31]
[313246587,1707007860187,-496.42423021,0.00046575,31]
[313246588,1707007860196,-500.0,0.00046575,31]
[313246589,1707007860206,-500.0,0.00046575,31]
[313246590,1707007860216,-1000.0,0.00046575,120]
[313246591,1707007860226,-5000.0,0.00046575,14]
[313246592,1707007860236,-500.0,0.00046575,2]
[313246593,1707007860246,-500.0,0.00046575,31]
[313246594,1707007860257,-500.0,0.00046575,2]
[313246595,1707007860267,-500.0,0.00046575,31]
[313246596,1707007860276,-500.0,0.00046575,31]
[313246597,1707007860285,-318.13978867,0.00046575,31]
[313246598,1707007860295,-500.0,0.00046575,10]
[313246599,1707007860305,-192.51213292,0.00046575,31]
[313246600,1707007860314,-500.0,0.00046575,31]
[313246601,1707007860323,-500.0,0.00046575,31]
[313246602,1707007860333,-500.0,0.00046575,31]
[313246603,1707007860342,-233.22747019,0.00046575,31]
[313246604,1707007860352,-500.0,0.00046575,2]
[313246605,1707007860361,-500.0,0.00046575,31]
[313246606,1707007860370,-500.0,0.00046575,31]
[313246607,1707007860379,-421.77,0.00046575,31]
[313246608,1707007860390,-500.0,0.00046575,31]
[313246609,1707007860399,-345.96092497,0.00046575,31]
[313246610,1707007860408,-508.8020792,0.00046575,30]
[313246611,1707007860419,-540.22,0.00046575,31]
[313246612,1707007860428,-500.0,0.00046575,31]
[313246613,1707007860437,-500.0,0.00046575,31]
[313246614,1707007860447,-500.0,0.00046575,31]
[313246615,1707007860458,-500.0,0.00046575,31]
[313246616,1707007860467,-500.0,0.00046575,31]
[313246617,1707007860477,-500.0,0.00046575,31]
[313246618,1707007860486,-500.0,0.00046575,31]
[313246619,1707007860495,-375.08333209,0.00046575,31]
[313246620,1707007860525,-500.0,0.00046575,31]
[313246621,1707007860535,-500.0,0.00046575,31]
[313246622,1707007860544,-500.0,0.00046575,31]
[313246623,1707007860554,-500.0,0.00046575,2]
[313246624,1707007860563,-500.0,0.00046575,31]
[313246625,1707007860573,-500.0,0.00046575,31]
[313246626,1707007860581,-418.10039414,0.00046575,31]
[313246627,1707007860590,-993.76,0.00046575,30]
[313246628,1707007860601,-500.0,0.00046575,31]
[313246629,1707007860610,-500.0,0.00046575,7]
[313246630,1707007860620,-500.0,0.00046575,31]
[313246631,1707007860630,-546.07228349,0.00046575,31]
[313246632,1707007860639,-500.0,0.00046575,31]
[313246633,1707007860649,-500.0,0.00046575,31]
[313246634,1707007860659,-500.0,0.00046575,31]
[313246635,1707007860670,-1456.66,0.00046575,31]
[313246636,1707007860681,-444.35130082,0.00046575,31]
[313246637,1707007860693,-500.0,0.00046575,31]
[313246638,1707007860702,-500.0,0.00046575,31]
[313246639,1707007860712,-279.99555119,0.00046575,31]
[313246640,1707007860721,-500.0,0.00046575,31]
[313246641,1707007860730,-226.52,0.00046575,31]
[313246642,1707007860739,-500.0,0.00046575,31]
[313246643,1707007860749,-500.0,0.00046575,31]
[313246644,1707007860758,-1120.91,0.00046575,31]
[313246645,1707007860767,-500.0,0.00046575,31]
[313246646,1707007860777,-323.81810134,0.00046575,31]
[313246647,1707007860786,-500.0,0.00046575,31]
[313246648,1707007860799,-212.26538531,0.00046575,31]
[313246649,1707007860808,-500.0,0.00046575,31]
[313246650,1707007860818,-533.5208663,0.00046575,31]
[313246651,1707007860827,-500.0,0.00046575,31]
[313246652,1707007860837,-169.96035399,0.00046575,31]
[313246653,1707007860847,-159.15367103,0.00046575,31]
[313246654,1707007860856,-801.39,0.00046575,20]
[313246655,1707007860867,-500.0,0.00046575,31]
[313246656,1707007860878,-500.0,0.00046575,31]
[313246657,1707007860888,-500.0,0.00046575,31]
[313246658,1707007860898,-500.0,0.00046575,31]
[313246659,1707007860908,-1000.0,0.00046575,7]
[313246660,1707007860917,-511.07525053,0.00046575,31]
[313246661,1707007860926,-3196.6,0.00046575,31]
[313246662,1707007860935,-500.0,0.00046575,31]
[313246663,1707007860945,-500.0,0.00046575,31]
[313246664,1707007860954,-284.79641931,0.00046575,31]
[313246665,1707007860964,-228.34583221,0.00046575,31]
[313246666,1707007860973,-534.9848439,0.00046575,31]
[313246667,1707007860982,-219.10796606,0.00046575,31]
[313246668,1707007860993,-541.63437076,0.00046575,31]
[313246669,1707007861003,-500.0,0.00046575,31]
[313246670,1707007861012,-376.8,0.00046575,31]
[313246671,1707007861021,-3921.47,0.00046575,31]
[313246672,1707007861030,-500.0,0.00046575,31]
[313246673,1707007861039,-474.39403671,0.00046575,31]
[313246674,1707007861048,-500.0,0.00046575,31]
[313246675,1707007861057,-500.0,0.00046575,31]
[313246676,1707007861067,-500.0,0.00046575,31]
[313246677,1707007861076,-500.0,0.00046575,31]
[313246678,1707007861085,-1500.28,0.00046575,5]
[313246679,1707007861094,-500.0,0.00046575,31]
[313246680,1707007861103,-551.40765816,0.00046575,31]
[313246681,1707007861112,-500.0,0.00046575,31]
[313246682,1707007861121,-500.0,0.00046575,31]
[313246683,1707007861131,-500.0,0.00046575,31]
[313246684,1707007861140,-500.0,0.00046575,31]
[313246685,1707007861150,-500.0,0.00046575,31]
[313246686,1707007861159,-331.89421832,0.00046575,31]
[313246687,1707007861168,-500.0,0.00046575,31]
[313246688,1707007861178,-500.0,0.00046575,31]
[313246689,1707007861187,-500.0,0.00046575,31]
[313246690,1707007861196,-500.0,0.00046575,31]
[313246691,1707007861205,-1906.16,0.00046575,5]
[313246692,1707007861215,-500.0,0.00046575,31]
[313246693,1707007861225,-500.0,0.00046575,31]
[313246694,1707007861235,-1038.15,0.00046575,30]
[313246695,1707007861245,-500.0,0.00046575,31]
[313246696,1707007861255,-500.0,0.00046575,31]
[313246697,1707007861265,-500.0,0.00046575,31]
[313246698,1707007861276,-322.96936639,0.00046575,31]
[313246699,1707007861286,-500.0,0.00046575,31]
[313246700,1707007861295,-500.0,0.00046575,31]
[313246701,1707007861306,-382.1821301,0.00046575,31]
[313246702,1707007861316,-500.0,0.00046575,31]
[313246703,1707007861325,-500.0,0.00046575,7]
[313246704,1707007861334,-500.0,0.00046575,31]
[313246705,1707007861344,-500.0,0.00046575,31]
[313246706,1707007861353,-557.92271572,0.00046575,31]
[313246707,1707007861362,-500.0,0.00046575,31]
[313246708,1707007861372,-500.0,0.00046575,31]
[313246709,1707007861381,-500.0,0.00046575,31]
[313246710,1707007861471,-500.0,0.00046575,31]
[313246711,1707007861480,-500.0,0.00046575,31]
[313246712,1707007861490,-188.54526842,0.00046575,31]
[313246713,1707007861499,-500.0,0.00046575,31]
[313246714,1707007861508,-573.61211419,0.00046575,31]
[313246715,1707007861518,-500.0,0.00046575,31]
[313246716,1707007861527,-500.0,0.00046575,31]
[313246717,1707007861536,-500.0,0.00046575,31]
[313246718,1707007861546,-500.0,0.00046575,31]
[313246719,1707007861555,-500.0,0.00046575,31]
[313246720,1707007861564,-500.0,0.00046575,31]
[313246721,1707007861573,-502.76363579,0.00046575,31]
[313246722,1707007861582,-500.0,0.00046575,31]
[313246723,1707007861591,-500.0,0.00046575,10]
[313246724,1707007861600,-500.0,0.00046575,31]
[313246725,1707007861609,-520.58,0.00046575,31]
[313246726,1707007861619,-500.0,0.00046575,31]
[313246727,1707007861629,-500.0,0.00046575,31]
[313246728,1707007861638,-500.0,0.00046575,31]
[313246729,1707007861647,-500.0,0.00046575,31]
[313246730,1707007861656,-1188.57,0.00046575,31]
[313246731,1707007861666,-500.0,0.00046575,31]
[313246732,1707007861675,-500.0,0.00046575,31]
[313246733,1707007861685,-500.0,0.00046575,31]
[313246734,1707007861694,-528.8676577,0.00046575,31]
[313246735,1707007861703,-500.0,0.00046575,31]
[313246736,1707007861712,-464.68659561,0.00046575,31]
[313246737,1707007861721,-2008.13,0.00046575,31]
[313246738,1707007861730,-500.0,0.00046575,31]
[313246739,1707007861739,-501.6914414,0.00046575,2]
[313246740,1707007861749,-500.0,0.00046575,31]
[313246741,1707007861759,-500.0,0.00046575,2]
[313246742,1707007861769,-500.0,0.00046575,31]
[313246743,1707007861779,-500.0,0.00046575,31]
[313246744,1707007861788,-500.72518999,0.00046575,2]
[313246745,1707007861802,-629.96,0.00046575,31]
[313246746,1707007861812,-500.0,0.00046575,31]
[313246747,1707007861821,-500.0,0.00046575,31]
[313246748,1707007861831,-500.0,0.00046575,31]
[313246749,1707007861841,-500.0,0.00046575,31]
[313246750,1707007861850,-500.0,0.00046575,31]
[313246751,1707007861859,-500.0,0.00046575,31]
[313246752,1707007861870,-500.0,0.00046575,31]
[313246753,1707007861880,-500.0,0.00046575,31]
[313246754,1707007861889,-500.0,0.00046575,31]
[313246755,1707007861899,-227.368133,0.00046575,14]
[313246756,1707007861908,-155.0,0.00046577,2]
[313246757,1707007861917,-5000.0,0.000466,2]
[313246758,1707007861926,-2554.87981807,0.000466,60]
[313246759,1707007861935,-484.43875112,0.000466,2]
[313246760,1707007861945,-3000.0,0.000466,2]
[313246761,1707007861954,-500.0,0.000466,2]
[313246762,1707007861964,-200.0,0.000466,2]
[313246763,1707007861973,-8000.0,0.000466,2]
[313246764,1707007861982,-1250.0,0.000466,2]
[313246765,1707007861992,-1000.0,0.000466,2]
[313246766,1707007862002,-150.0,0.00046629,30]
[313246767,1707007862012,-450.0,0.00046635,30]
[313246768,1707007862022,-153.58945095,0.00046641,30]
[313246769,1707007862032,-150.0,0.00046653,30]
[313246770,1707007862041,-251.0,0.0004667,30]
[313246771,1707007862051,-211.0,0.0004667,30]
[313246772,1707007862060,-205.0,0.0004667,30]
[313246773,1707007862069,-211.0,0.0004667,30]
[313246774,1707007862079,-150.0,0.00046737,30]
[313246775,1707007862088,-150.0,0.00046737,30]
[313246776,1707007862105,-150.0,0.00046737,30]
[313246777,1707007862115,-181.81261528,0.00046756,30]
[313246778,1707007862124,-20365.85631,0.000468,30]
[313246779,1707007862133,-4000.001001,0.000468,55]
[313246780,1707007862143,-150.0,0.000468,30]
[313246781,1707007862153,-150.0,0.000468,30]
[313246782,1707007862162,-23747.56,0.00046805,5]
[313246783,1707007862171,-52504.35,0.00046805,5]
[313246784,1707007862180,-150.0,0.00046821,30]
[313246785,1707007862190,-17094.15,0.00046849,120]
[313246786,1707007862199,-7180.69190548,0.0004687,3]
[313246787,1707007862208,-3000.0,0.000469,40]
[313246788,1707007862220,-1005.49430756,0.000469,4]
[313246789,1707007862240,-450.0,0.00046904,30]
[313246790,1707007862255,-150.0,0.00046905,30]
[313246791,1707007862271,-7000.0,0.00046933,2]
[313246792,1707007862287,-278762.69884561,0.00046982,7]
[313246793,1707007862304,-200.0,0.00046987,16]
[313246794,1707007862317,-200.0,0.00046987,21]
[313246795,1707007862332,-150.0,0.00046989,30]
[313246796,1707007862347,-150.0,0.00046989,30]
[313246797,1707007862363,-150.0,0.00046989,30]
[313246798,1707007862375,-8193.0,0.0004699,2]
[313246799,1707007862392,-6267.0,0.0004699,2]
[313246800,1707007862408,-1000.0,0.0004699,10]
[313246801,1707007862422,-100000.0,0.00047,37]
[313246802,1707007862437,-1000000.0,0.00047,120]
[313246803,1707007862455,-2000.0,0.00047,32]
[313246804,1707007862471,-396.58493558,0.00047,120]
[313246805,1707007862482,-150927.18432375,0.00047,2]
[313246806,1707007862496,-533.28,0.00047,7]
[313246807,1707007862508,-93636.3621056,0.00047,30]
[313246808,1707007862523,-500.0,0.00047,10]
[313246809,1707007862534,-500.0,0.00047,4]
[313246810,1707007862547,-2100.0,0.00047,14]
[313246811,1707007862560,-11038.25,0.00047,4]
[313246812,1707007862573,-10149.63124408,0.00047,60]
[313246813,1707007862586,-1000.0,0.00047,2]
[313246814,1707007862599,-3000.0,0.00047,30]
[313246815,1707007862612,-300.0,0.00047,48]
[313246816,1707007862624,-170.0263118,0.00047,4]
[313246817,1707007862637,-156.79202731,0.00047,4]
[313246818,1707007862649,-1000.0,0.00047,120]
[313246819,1707007862662,-380.55198113,0.00047,120]
[313246820,1707007862675,-73884.16,0.00047,7]
[313246821,1707007862687,-22267.18,0.00047,7]
[313246822,1707007862700,-34585.08,0.00047,7]
[313246823,1707007862713,-250.0,0.00047,47]
[313246824,1707007862727,-39619.0492585,0.00047,4]
[313246825,1707007862740,-4000.000001,0.00047,60]
[313246826,1707007862753,-2000.0,0.00047,30]
[313246827,1707007862767,-200.0,0.00047,26]
[313246828,1707007862780,-22764.0,0.00047,60]
[313246829,1707007862797,-150.0,0.00047,18]
[313246830,1707007862811,-150.0,0.0004704,30]
[313246831,1707007862826,-150.0,0.00047074,30]
[313246832,1707007862841,-1035794.99,0.00047097,5]
[313246833,1707007862854,-11630.85,0.00047097,5]
[313246834,1707007862867,-64061.29,0.00047097,5]
[313246835,1707007862880,-13318.76,0.00047097,5]
[313246836,1707007862893,-108800.11,0.00047097,5]
[313246837,1707007862906,-34540.91,0.00047097,5]
[313246838,1707007862919,-500.0,0.00047123,2]
[313246839,1707007862931,-511.94758204,0.00047123,30]
[313246840,1707007862944,-500.0,0.00047123,31]
[313246841,1707007862958,-500.0,0.00047123,31]
[313246842,1707007862971,-188.6255259,0.00047123,31]
[313246843,1707007862986,-289.89591951,0.00047123,31]
[313246844,1707007863001,-7886.32,0.00047123,31]
[313246845,1707007863015,-500.0,0.00047123,2]
[313246846,1707007863030,-500.0,0.00047123,31]
[313246847,1707007863043,-500.0,0.00047123,31]
[313246848,1707007863057,-210.57382519,0.00047123,31]
[313246849,1707007863070,-567.37892026,0.00047123,31]
[313246850,1707007863083,-500.0,0.00047123,31]
[313246851,1707007863096,-228.48086735,0.00047123,31]
[313246852,1707007863109,-500.0,0.00047123,31]
[313246853,1707007863122,-500.0,0.00047123,31]
[313246854,1707007863135,-196.15660448,0.00047123,31]
[313246855,1707007863148,-500.0,0.00047123,31]
[313246856,1707007863162,-5000.0,0.00047123,14]
[313246857,1707007863175,-500.0,0.00047123,2]
[313246858,1707007863185,-274.11260744,0.00047123,31]
[313246859,1707007863195,-500.0,0.00047123,2]
[313246860,1707007863204,-500.0,0.00047123,31]
[313246861,1707007863213,-500.0,0.00047123,31]
[313246862,1707007863366,-500.0,0.00047123,10]
[313246863,1707007863381,-507.60858681,0.00047123,31]
[313246864,1707007863390,-500.0,0.00047123,31]
[313246865,1707007863400,-565.79,0.00047123,2]
[313246866,1707007863409,-500.0,0.00047123,31]
[313246867,1707007863418,-500.0,0.00047123,31]
[313246868,1707007863427,-500.0,0.00047123,31]
[313246869,1707007863436,-500.0,0.00047123,31]
[313246870,1707007863445,-993.76,0.00047123,30]
[313246871,1707007863454,-1456.66,0.00047123,31]
[313246872,1707007863463,-350.62,0.00047123,31]
[313246873,1707007863472,-1120.91,0.00047123,31]
[313246874,1707007863481,-500.0,0.00047123,31]
[313246875,1707007863490,-801.39,0.00047123,20]
[313246876,1707007863499,-500.0,0.00047123,31]
[313246877,1707007863508,-3196.6,0.00047123,31]
[313246878,1707007863517,-500.0,0.00047123,31]
[313246879,1707007863526,-500.0,0.00047123,31]
[313246880,1707007863536,-500.0,0.00047123,31]
[313246881,1707007863545,-3921.47,0.00047123,31]
[313246882,1707007863554,-500.0,0.00047123,31]
[313246883,1707007863563,-500.0,0.00047123,31]
[313246884,1707007863573,-528.89,0.00047123,31]
[313246885,1707007863582,-1500.28,0.00047123,5]
[313246886,1707007863591,-1906.16,0.00047123,5]
[313246887,1707007863600,-500.0,0.00047123,31]
[313246888,1707007863609,-1038.15,0.00047123,30]
[313246889,1707007863619,-448.6,0.00047123,31]
[313246890,1707007863628,-500.0,0.00047123,7]
[313246891,1707007863637,-500.0,0.00047123,31]
[313246892,1707007863646,-500.0,0.00047123,31]
[313246893,1707007863655,-500.0,0.00047123,31]
[313246894,1707007863665,-500.0,0.00047123,31]
[313246895,1707007863674,-500.0,0.00047123,31]
[313246896,1707007863683,-477.36,0.00047123,31]
[313246897,1707007863693,-500.0,0.00047123,10]
[313246898,1707007863702,-520.58,0.00047123,31]
[313246899,1707007863711,-201.01367525,0.00047123,31]
[313246900,1707007863720,-500.0,0.00047123,31]
[313246901,1707007863729,-500.0,0.00047123,31]
[313246902,1707007863738,-1188.57,0.00047123,31]
[313246903,1707007863748,-500.0,0.00047123,31]
[313246904,1707007863757,-2008.13,0.00047123,31]
[313246905,1707007863766,-500.0,0.00047123,31]
[313246906,1707007863775,-500.0,0.00047123,31]
[313246907,1707007863784,-500.0,0.00047123,31]
[313246908,1707007863798,-612.14,0.00047123,31]
[313246909,1707007863807,-500.0,0.00047123,31]
[313246910,1707007863817,-150.0,0.00047158,30]
[313246911,1707007863826,-450.0,0.00047173,30]
[313246912,1707007863836,-150.0,0.00047242,30]
[313246913,1707007863845,-150.0,0.00047242,30]
[313246914,1707007863855,-150.0,0.00047242,30]
[313246915,1707007863865,-150.0,0.00047314,30]
[313246916,1707007863875,-150.0,0.00047326,30]
[313246917,1707007863884,-5845.0,0.0004739,2]
[313246918,1707007863893,-4470.0,0.0004739,2]
[313246919,1707007863902,-227.368133,0.00047397,14]
[313246920,1707007863911,-150.0,0.000474,30]
[313246921,1707007863920,-150.0,0.000474,30]
[313246922,1707007863930,-150.0,0.00047411,30]
[313246923,1707007863939,-55078.2,0.00047411,5]
[313246924,1707007863948,-5474.1,0.00047411,5]
[313246925,1707007863958,-210248.38,0.00047411,5]
[313246926,1707007863967,-61040.57,0.00047411,5]
[313246927,1707007863976,-150.0,0.0004744,2]
[313246928,1707007863985,-450.0,0.00047442,30]
[313246929,1707007863994,-2176.45455422,0.00047468,40]
[313246930,1707007864003,-150.0,0.00047495,30]
[313246931,1707007864013,-150.0,0.00047495,30]
[313246932,1707007864022,-150.0,0.00047495,30]
[313246933,1707007864032,-1105.95,0.00047499,120]
[313246934,1707007864041,-755.1676337,0.000475,10]
[313246935,1707007864050,-633508.37633471,0.000475,120]
[313246936,1707007864186,-1171.90952275,0.000475,120]
[313246937,1707007864203,-378.52241237,0.000475,120]
[313246938,1707007864214,-504.78668825,0.000475,120]
[313246939,1707007864323,-360.08234564,0.00039999,31]
[313246940,1707007864332,-271.98943651,0.00040645,12]
[313246941,1707007864342,-184.0,0.00041048,2]
[313246942,1707007864351,-765.19602405,0.000475,120]
[313246943,1707007864363,-1045.44061872,0.000475,120]
[313246944,1707007864374,-1141.71947878,0.000475,120]
[313246945,1707007864386,-599.0606068,0.000475,120]
[313246946,1707007864397,-1620.901706,0.000475,120]
[313246947,1707007866920,4532.58010404,0.00022401,2]
[313246954,1707007974390,550.0,0.00022,3]
[313246959,1707008053774,4587.33555834,0.00012,30]
[313247032,1707009031653,-1224.42433623,0.00022604,2]
[313247033,1707009031662,-166.46527863,0.00022604,2]
[313247034,1707009031672,-166.46527861,0.00022605,2]
[313247035,1707009031682,-166.46527861,0.00022605,2]
[313247036,1707009031692,-152.58495256,0.00022605,2]
[313247037,1707009031701,-150.0,0.00022704,2]
[313247038,1707009031710,-978.3605,0.00022705,2]
[313247039,1707009031720,-716.23,0.00022705,2]
[313247040,1707009031729,-268.98050156,0.00022705,2]
[313247041,1707009031760,-449.94949844,0.00022705,2]
[313247042,1707009031770,-176.28479479,0.00022705,2]
[313247043,1707009031782,-552.72520521,0.00022705,2]
[313247044,1707009031792,-729.7,0.00022705,2]
[313247045,1707009031802,-724.62,0.00022705,2]
[313247046,1707009031812,-726.79,0.00022705,2]
[313247047,1707009031821,-725.85,0.00022705,2]
[313247048,1707009031831,-737.72,0.00022705,2]
[313247049,1707009031841,-727.01,0.00022705,2]
[313247050,1707009031851,-2788.61074236,0.00022998,2]
[313247051,1707009031860,-630.70217148,0.00022998,2]
[313247052,1707009031870,-829.96443153,0.00022998,2]
[313247053,1707009031879,-3038.59516469,0.00022998,2]
[313247054,1707009031888,-280.11299096,0.00022999,2]
[313247055,1707009031897,-4285.27606857,0.00022999,2]
[313247056,1707009031907,-405.24244888,0.00023,2]
[313247057,1707009031915,-2602.60078181,0.00023,2]
[313247058,1707009031924,-5409.67310388,0.00023,2]
[313247060,1707009031939,-3285.86088101,0.00023,2]
[313247062,1707009031951,-5523.84069082,0.00023,2]
[313247064,1707009031962,-771.5074656,0.00023,2]
[313247066,1707009031973,-12685.69065064,0.00023,2]
[313247069,1707009031985,-6713.49999363,0.00023,2]
[313247093,1707009037682,-7927.31680237,0.00023,2]
[313247094,1707009037693,-142.81014251,0.00023,2]
[313247095,1707009037702,-290.51872306,0.00023,2]
[313247096,1707009037712,-4064.67684712,0.00023336,2]
[313247097,1707009037721,-233.79,0.00023336,2]
[313247098,1707009037730,-499.99,0.00023336,2]
[313247099,1707009037739,-1000.0,0.00023605,2]
[313247100,1707009037749,-600.0,0.00024,3]
[313247101,1707009037758,-201.81401638,0.00024,2]
[313247102,1707009037766,-216.44,0.00024,2]
[313247103,1707009037776,-200.0,0.00025,2]
[313247104,1707009037785,-510.9613416,0.00025,2]
[313247105,1707009037794,-323.9802365,0.00025,2]
[313247106,1707009037804,-1028.84203368,0.00025,2]
[313247107,1707009037813,-159.2692348,0.00025,2]
[313247108,1707009037823,-936.77222899,0.00025,2]
[313247109,1707009037832,-167.96342031,0.00025,2]
[313247110,1707009037841,-202.73608472,0.00025,2]
[313247111,1707009037850,-304.55413584,0.00025,2]
[313247112,1707009037859,-1589.2290575,0.00025,2]
[313247113,1707009037870,-1906.13148875,0.00025,2]
[313247114,1707009037879,-1253.60774218,0.00025,2]
[313247115,1707009037888,-150.58,0.00025229,2]
[313247116,1707009037898,-152.58495252,0.00025664,2]
[313247117,1707009037907,-205.0,0.00025991,2]
[313247118,1707009037916,-650.0,0.00026,3]
[313247119,1707009037925,-574.2,0.00026,2]
[313247120,1707009037934,-252.73685063,0.000265,2]
[313247121,1707009037943,-4489.013,0.00026779,2]
[313247122,1707009037952,-7310.367,0.00026779,2]
[313247123,1707009037961,-3589.593,0.00026779,2]
[313247124,1707009037970,-1711.407,0.00026779,2]
[313247125,1707009037980,-42406.0,0.00026779,2]
[313247126,1707009037989,-4083.68909073,0.00026779,2]
[313247127,1707009038001,-900.82433991,0.00026779,2]
[313247129,1707009038016,-903.10202717,0.00026779,2]
[313247131,1707009038036,-1646.19256487,0.00026779,2]
[313247132,1707009038048,-758.36707319,0.00026779,2]
[313247134,1707009040187,-5126.8903347,0.00026779,2]
[313247135,1707009040200,-2233.57800838,0.00026779,2]
[313247136,1707009040265,-4130.35656105,0.00026779,2]
[313247137,1707009040274,-2282.0,0.00026779,2]
[313247138,1707009040285,-1034.0,0.00026779,2]
[313247139,1707009040294,-2000.0,0.00026869,2]
[313247140,1707009040305,-11499.66,0.00027287,2]
[313247141,1707009040315,-250.0,0.00027331,2]
[313247142,1707009040328,-250.0,0.00027363,2]
[313247143,1707009040340,-1000.0,0.00027397,2]
[313247144,1707009040349,-155.0,0.00027397,2]
[313247145,1707009040358,-6868.85131928,0.00027437,2]
[313247146,1707009040369,-150.58,0.00027493,2]
[313247147,1707009040378,-155.0,0.000275,2]
[313247148,1707009040388,-2000.0,0.00027611,3]